bitfinex-derivatives/quotes_SOLF0:USTF0_20240816
["timestamp","ask_amount","ask_price","bid_price","bid_amount"]
[1723812230464,6.86,139.38,139.29,55.38866149]
[1723812230767,6.86,139.38,139.32,51.72]
[1723812230964,51.72,139.45,139.34,51.72]
[1723812231165,3.5849,139.44,139.34,51.72]
[1723812231569,51.72,139.47,139.36,51.72]
[1723812231869,6.86,139.48,139.38,51.72]
[1723812232272,3.5845,139.46,139.38,51.72]
[1723812232771,3.5845,139.46,139.38,58.58]
[1723812232973,3.5845,139.46,139.41,0.05507506]
[1723812233176,0.04854706,139.43,139.41,0.05507506]
[1723812233773,3.5844,139.46,139.41,0.05507506]
[1723812233973,0.04712893,139.43,139.41,0.05507506]
[1723812235763,0.04712893,139.43,139.33,2.5072]
[1723812235977,3.5861,139.4,139.33,2.5072]
[1723812236265,58.58,139.41,139.33,1.2426]
[1723812236577,58.58,139.41,139.28,1.2818]
[1723812236578,51.72,139.38,139.28,1.2818]
[1723812236875,58.58,139.41,139.33,3.5875]
[1723812237273,51.72,139.41,139.29,51.72]
[1723812237468,0.04920732,139.34,139.33,3.5877]
[1723812237775,6.86,139.41,139.32,0.05439034]
[1723812237978,51.72,139.44,139.32,1.36519034]
[1723812238178,3.5854,139.42,139.32,1.3108]
[1723812238372,6.86,139.43,139.32,1.3108]
[1723812238674,3.5858,139.41,139.36,3.5869]
[1723812238873,6.86,139.43,139.32,1.3108]
[1723812239072,6.86,139.43,139.37,3.5866]
[1723812239272,10.4451,139.43,139.33,51.72]
[1723812239477,0.04624533,139.39,139.36,0.05361089]
[1723812239677,0.04624533,139.39,139.37,3.5865]
[1723812239869,0.04624533,139.39,139.36,0.05361089]
[1723812240769,0.04624533,139.39,139.36,3.64031089]
[1723812241171,0.04624533,139.39,139.36,0.05361089]
[1723812241364,0.04624533,139.39,139.38,3.5864]
[1723812241569,6.86,139.43,139.37,1.3004]
[1723812241770,51.72,139.46,139.38,3.5864]
[1723812241971,51.72,139.46,139.37,1.3004]
[1723812242574,51.72,139.49,139.37,1.3004]
[1723812242776,0.05087156,139.43,139.4,0.04927109]
[1723812243277,0.05087156,139.43,139.37,1.3004]
[1723812243278,3.5855,139.42,139.37,1.3004]
[1723812243474,3.5855,139.42,139.4,0.04632808]
[1723812243680,0.05439556,139.43,139.4,0.04632808]
[1723812243879,3.5856,139.41,139.4,0.04632808]
[1723812245172,3.5854,139.42,139.4,0.04632808]
[1723812245371,0.05439556,139.43,139.4,0.04632808]
[1723812246579,3.5856,139.41,139.4,0.04632808]
[1723812246879,0.05439556,139.43,139.4,0.04632808]
[1723812247071,3.5856,139.41,139.4,0.04632808]
[1723812247271,51.72,139.42,139.32,1.3108]
[1723812247479,0.05439556,139.43,139.32,1.3108]
[1723812247480,51.72,139.4,139.32,1.3108]
[1723812248673,3.5868,139.37,139.32,4.8986]
[1723812248880,0.05102535,139.37,139.35,0.05306144]
[1723812249277,3.5869,139.36,139.35,0.05306144]
[1723812250185,3.63782535,139.37,139.35,0.05306144]
[1723812250497,0.05102535,139.37,139.35,0.05306144]
[1723812251371,0.05102535,139.37,139.35,3.64006144]
[1723812252586,0.05102535,139.37,139.35,0.05306144]
[1723812255081,50.233,139.61,139.36,43.05]
[1723812255082,43.05,139.47,139.36,43.05]
[1723812255284,6.64,139.46,139.36,44.3292]
[1723812255481,6.64,139.46,139.36,1.2792]
[1723812255885,3.5848,139.45,139.4,3.5857]
[1723812256088,6.64,139.47,139.38,43.05]
[1723812256384,6.64,139.47,139.41,0.04911691]
[1723812256385,0.04932673,139.44,139.41,0.04911691]
[1723812258185,0.04932673,139.44,139.41,3.63471691]
[1723812258384,0.04932673,139.44,139.41,0.04911691]
[1723812261484,6.64,139.51,139.42,46.6877548]
[1723812261687,6.64,139.51,139.42,43.05]
[1723812262287,6.64,139.51,139.44,3.5847]
[1723812262586,6.64,139.51,139.42,46.57948615]
[1723812262787,0.05274166,139.49,139.46,0.05516079]
[1723812263491,6.64,139.55,139.46,43.10516079]
[1723812263687,6.64,139.55,139.47,2.6668]
[1723812263991,0.3931,139.62,139.49,43.05]
[1723812263992,43.05,139.6,139.49,43.05]
[1723812264187,6.64,139.59,139.49,43.05]
[1723812264391,6.64,139.59,139.51,43.05]
[1723812264689,43.05,139.6,139.47,2.6668]
[1723812264887,0.05457282,139.55,139.53,0.04747451]
[1723812265389,3.5823,139.54,139.53,0.04747451]
[1723812266281,46.6323,139.54,139.53,0.04747451]
[1723812266985,3.5823,139.54,139.53,0.04747451]
[1723812268293,0.04722964,139.55,139.53,0.04747451]
[1723812269291,3.5815,139.58,139.53,0.04747451]
[1723812269489,51.63,139.64,139.53,0.04747451]
[1723812269792,3.5817,139.57,139.53,0.04747451]
[1723812270199,35.32,139.63,139.52,55.2126]
[1723812270413,51.63,139.61,139.51,3.5829]
[1723812270591,51.63,139.61,139.5,1.361]
[1723812270890,0.0494543,139.59,139.5,4.97377687]
[1723812271294,0.0494543,139.59,139.54,0.04873504]
[1723812271487,35.32,139.63,139.54,0.04873504]
[1723812271887,3.5818,139.57,139.52,3.5826]
[1723812272096,0.04538905,139.58,139.5,1.361]
[1723812272401,51.63,139.57,139.47,2.6668]
[1723812272589,6.68538905,139.58,139.57,0.05123625]
[1723812272790,6.68538905,139.58,139.47,2.6668]
[1723812272984,3.5826,139.53,139.49,3.5835]
[1723812273190,6.64,139.58,139.48,1.252]
[1723812273589,6.64,139.58,139.49,3.5835]
[1723812273995,6.64,139.58,139.48,1.252]
[1723812274185,0.04854689,139.55,139.52,3.63518787]
[1723812274416,0.04854689,139.55,139.52,0.05238787]
[1723812275392,0.04854689,139.55,139.52,3.63518787]
[1723812276291,0.04854689,139.55,139.53,3.5825]
[1723812276495,0.04854689,139.55,139.52,0.05238787]
[1723812277592,3.63074689,139.55,139.52,0.05238787]
[1723812277797,0.04854689,139.55,139.52,0.05238787]
[1723812278790,0.04854689,139.55,139.52,3.63508787]
[1723812279502,0.04854689,139.55,139.52,0.05238787]
[1723812280601,3.63064689,139.55,139.52,0.05238787]
[1723812280993,0.04854689,139.55,139.52,0.05238787]
[1723812283498,51.62,139.54,139.52,0.05238787]
[1723812284203,6.46,139.53,139.52,0.05238787]
[1723812284601,10.0425,139.53,139.52,0.05238787]
[1723812285900,103.24,139.54,139.32,28.68]
[1723812286210,51.62,139.49,139.37,2.6329]
[1723812286410,6.46,139.48,139.42,3.5853]
[1723812286606,6.46,139.48,139.37,2.6329]
[1723812287401,0.04824677,139.44,139.41,0.05479256]
[1723812291112,3.63314677,139.44,139.41,0.05479256]
[1723812291507,0.04824677,139.44,139.41,0.05479256]
[1723812291710,3.63314677,139.44,139.41,0.05479256]
[1723812291904,0.04824677,139.44,139.41,0.05479256]
[1723812292717,3.5852,139.43,139.41,0.05479256]
[1723812292909,0.04824677,139.44,139.41,0.05479256]
[1723812293609,0.04824677,139.44,139.42,3.5854]
[1723812294226,0.04824677,139.44,139.41,4.96869256]
[1723812294418,0.04824677,139.44,139.41,1.38319256]
[1723812294709,6.46,139.49,139.43,3.585]
[1723812295021,6.46,139.49,139.41,1.3284]
[1723812295210,6.46,139.49,139.44,3.5847]
[1723812295407,6.46,139.49,139.42,43.03]
[1723812295612,6.46,139.49,139.43,3.54551466]
[1723812295814,0.05387555,139.47,139.45,3.5844]
[1723812296106,0.05387555,139.47,139.44,0.04891179]
[1723812297621,43.08387555,139.47,139.44,0.04891179]
[1723812297821,3.5845,139.46,139.44,0.04891179]
[1723812298017,43.08387555,139.47,139.44,0.04891179]
[1723812298415,46.66807555,139.47,139.44,0.04891179]
[1723812298729,3.63807555,139.47,139.44,0.04891179]
[1723812299326,0.05387555,139.47,139.44,0.04891179]
[1723812301517,43.08387555,139.47,139.44,0.04891179]
[1723812301831,43.03,139.45,139.37,2.6329]
[1723812302130,49.49,139.45,139.37,2.6329]
[1723812302327,6.46,139.45,139.37,2.6329]
[1723812303028,43.03,139.48,139.37,45.6629]
[1723812303232,43.03,139.48,139.4,0.05393986]
[1723812303233,0.04607768,139.42,139.4,0.05393986]
[1723812303527,71.40697466,139.53,139.41,43.03]
[1723812303828,120.89697466,139.53,139.41,43.03]
[1723812304025,120.89697466,139.53,139.44,3.5846]
[1723812304326,120.89697466,139.53,139.43,3.52888006]
[1723812304524,120.89697466,139.53,139.41,43.03]
[1723812304525,6.46,139.53,139.44,44.2776]
[1723812304825,0.04610412,139.49,139.47,0.0547323]
[1723812307336,6.46,139.54,139.47,0.0547323]
[1723812307834,10.0424,139.54,139.48,3.5838]
[1723812308032,3.5824,139.54,139.48,3.5838]
[1723812308223,43.03,139.56,139.47,0.0547323]
[1723812308427,3.5823,139.54,139.48,3.5837]
[1723812308631,3.5823,139.54,139.47,0.0547323]
[1723812308632,0.04702007,139.53,139.45,1.3567]
[1723812308835,43.03,139.51,139.5,0.04928026]
[1723812309221,0.04702007,139.53,139.5,0.04928026]
[1723812309736,3.62972007,139.53,139.5,0.04928026]
[1723812310223,0.04702007,139.53,139.5,0.04928026]
[1723812310726,3.62962007,139.53,139.5,0.04928026]
[1723812310933,0.04702007,139.53,139.5,0.04928026]
[1723812311727,0.04702007,139.53,139.51,3.5829]
[1723812312138,0.04702007,139.53,139.5,0.04928026]
[1723812312433,0.04702007,139.53,139.52,3.5828]
[1723812313032,43.03,139.59,139.51,1.3465]
[1723812313336,6.46,139.63,139.52,43.03]
[1723812313631,3.5802,139.63,139.57,3.5815]
[1723812313845,43.03,139.61,139.52,43.03]
[1723812314029,43.03,139.61,139.51,1.3465]
[1723812314236,43.03,139.61,139.53,6.4]
[1723812314436,0.05508227,139.58,139.55,0.05095879]
[1723812314638,0.05508227,139.58,139.56,3.5816]
[1723812314838,0.05508227,139.58,139.55,0.05095879]
[1723812315136,0.05508227,139.58,139.57,3.5815]
[1723812315331,46.6097,139.64,139.55,0.05095879]
[1723812315539,46.6097,139.64,139.54,43.03]
[1723812315931,3.5796,139.65,139.54,43.03]
[1723812316132,3.5796,139.65,139.56,43.03]
[1723812316432,3.5796,139.65,139.59,3.5808]
[1723812316738,0.04885057,139.62,139.59,0.04996824]
[1723812316926,0.04885057,139.62,139.6,1.343]
[1723812317131,0.04885057,139.62,139.61,3.5805]
[1723812317326,28.66,139.72,139.6,1.343]
[1723812317327,0.0777,139.78,139.6,87.403]
[1723812317633,43.03,139.71,139.61,6.4]
[1723812317838,43.03,139.64,139.6,7.743]
[1723812318138,43.03,139.64,139.6,1.343]
[1723812318431,43.03,139.62,139.54,6.4]
[1723812318637,43.03,139.6,139.54,1.343]
[1723812318830,43.03,139.58,139.46,71.69]
[1723812319035,43.03,139.58,139.47,1.343]
[1723812319223,3.5815,139.57,139.56,0.04743294]
[1723812319429,46.6115,139.57,139.56,0.04743294]
[1723812319831,43.03,139.57,139.47,1.343]
[1723812320229,49.43,139.57,139.55,0.04997458]
[1723812320434,46.6117,139.57,139.55,0.04997458]
[1723812320734,43.03,139.57,139.48,1.3555]
[1723812321144,43.03,139.6,139.48,1.3555]
[1723812321331,0.04915851,139.57,139.55,0.05440052]
[1723812323441,0.04915851,139.57,139.49,1.2891]
[1723812323442,43.03,139.56,139.49,1.2891]
[1723812324040,3.5821,139.55,139.49,4.8725]
[1723812324238,43.03,139.56,139.49,4.8725]
[1723812324641,43.03,139.56,139.49,1.2891]
[1723812324938,0.05263369,139.54,139.51,0.05222234]
[1723812325643,3.63503369,139.54,139.51,0.05222234]
[1723812325943,0.05263369,139.54,139.51,0.05222234]
[1723812327143,43.08263369,139.54,139.51,0.05222234]
[1723812327340,0.05263369,139.54,139.51,0.05222234]
[1723812328542,0.05263369,139.54,139.53,3.5825]
[1723812329042,3.5813,139.58,139.53,3.5825]
[1723812329443,43.03,139.62,139.52,1.3099]
[1723812330239,0.052725,139.58,139.56,0.04535439]
[1723812330838,49.43,139.64,139.57,3.5813]
[1723812331041,305.64720327,139.77,139.57,3.5813]
[1723812331042,43.03,139.66,139.57,49.43]
[1723812331433,3.5796,139.65,139.6,3.5807]
[1723812331637,43.03,139.68,139.6,3.5807]
[1723812331838,43.03,139.68,139.57,43.03]
[1723812332039,3.5796,139.65,139.6,6.4]
[1723812332236,3.63256617,139.65,139.63,0.04624614]
[1723812332446,0.05296617,139.65,139.63,0.04624614]
[1723812333245,3.5797,139.64,139.63,0.04624614]
[1723812333443,0.05296617,139.65,139.63,0.04624614]
[1723812335849,43.03,139.64,139.42,10.7558]
[1723812336144,3.5811,139.59,139.53,3.5824]
[1723812336350,43.03,139.62,139.53,3.5824]
[1723812336857,6.57956617,139.65,139.46,43.03]
[1723812336858,43.03,139.57,139.46,43.03]
[1723812337044,43.03,139.57,139.49,6.4]
[1723812337243,46.6115,139.57,139.56,0.0504512]
[1723812337444,43.03,139.57,139.46,43.03]
[1723812337840,3.5827,139.53,139.46,43.03]
[1723812338046,43.03,139.55,139.44,53.4986]
[1723812338249,43.03,139.57,139.46,43.03]
[1723812338450,43.03,139.55,139.44,53.4986]
[1723812338758,0.04908191,139.53,139.5,0.05215594]
[1723812338943,3.5828,139.52,139.5,0.05215594]
[1723812339259,0.04908191,139.53,139.5,0.05215594]
[1723812339455,3.63178191,139.53,139.5,0.05215594]
[1723812339642,0.04908191,139.53,139.5,0.05215594]
[1723812340851,0.04908191,139.53,139.5,3.63525594]
[1723812341249,0.04908191,139.53,139.5,43.08215594]
[1723812341443,3.5812,139.59,139.51,2.7543]
[1723812341644,3.5812,139.59,139.52,1.3016]
[1723812341851,43.03,139.64,139.52,44.3316]
[1723812342054,43.03,139.66,139.55,43.03]
[1723812342252,43.03,139.66,139.55,49.43]
[1723812342749,0.05251047,139.62,139.59,0.04894938]
[1723812342946,3.63291047,139.62,139.59,0.04894938]
[1723812343348,43.03,139.64,139.55,6.4]
[1723812343561,43.03,139.64,139.55,9.9818]
[1723812343857,43.03,139.64,139.59,0.04863511]
[1723812343858,0.05492991,139.62,139.59,0.04863511]
[1723812344453,0.05492991,139.62,139.59,3.62953511]
[1723812345064,0.05492991,139.62,139.61,3.5805]
[1723812345554,3.5787,139.68,139.63,3.58]
[1723812345959,43.03,139.68,139.6,2.6126]
[1723812346357,35.14,139.73,139.6,2.6126]
[1723812346358,43.03,139.71,139.6,2.6126]
[1723812346658,0.05173969,139.67,139.64,0.05500261]
[1723812347252,0.05173969,139.67,139.65,3.5793]
[1723812347451,0.05173969,139.67,139.64,0.05500261]
[1723812347758,3.5793,139.66,139.64,0.05500261]
[1723812348063,0.05173969,139.67,139.64,0.05500261]
[1723812348762,3.5795,139.65,139.64,0.05500261]
[1723812349062,0.05173969,139.67,139.64,0.05500261]
[1723812351064,3.63073969,139.67,139.64,0.05500261]
[1723812351459,43.03,139.66,139.64,0.05500261]
[1723812351659,43.03,139.66,139.55,9.1678]
[1723812352162,43.03,139.66,139.6,3.5806]
[1723812352363,43.03,139.66,139.55,9.1678]
[1723812352565,3.5802,139.63,139.59,3.581]
[1723812352764,0.05273594,139.62,139.59,0.05141074]
[1723812353257,0.05273594,139.62,139.6,3.5805]
[1723812353461,0.05273594,139.62,139.59,0.05141074]
[1723812353654,0.05273594,139.62,139.61,3.5805]
[1723812354563,46.64601231,139.69,139.59,0.05141074]
[1723812354759,0.6445,139.74,139.55,2.6678]
[1723812354760,3.58,139.63,139.55,2.6678]
[1723812354967,43.03,139.65,139.55,2.6678]
[1723812355158,43.03,139.65,139.59,3.581]
[1723812355365,3.5799,139.64,139.59,3.581]
[1723812355558,3.5799,139.64,139.6,0.05378964]
[1723812355759,0.04760258,139.63,139.6,0.05378964]
[1723812356861,0.04760258,139.63,139.61,3.5805]
[1723812357161,0.04760258,139.63,139.6,0.05378964]
[1723812358056,3.5805,139.61,139.6,0.05378964]
[1723812358458,43.03,139.61,139.52,6.5]
[1723812358669,3.5814,139.58,139.53,3.5824]
[1723812358861,43.03,139.61,139.52,6.5]
[1723812359563,3.5813,139.58,139.53,3.5824]
[1723812359769,0.04898705,139.58,139.55,0.05510437]
[1723812361067,43.03,139.66,139.55,44.41060437]
[1723812361259,0.7508,139.67,139.57,43.03]
[1723812361458,0.7508,139.67,139.56,1.31550917]
[1723812361459,43.03,139.65,139.55,44.3555]
[1723812362367,3.58,139.63,139.55,50.8555]
[1723812362666,0.0453781,139.61,139.59,0.05256042]
[1723812366469,0.0453781,139.61,139.6,3.5808]
[1723812367171,43.03,139.69,139.59,0.05256042]
[1723812367172,43.03,139.69,139.59,1.2803]
[1723812367371,7.2474,139.72,139.6,43.03]
[1723812367571,3.5784,139.7,139.61,7.8029]
[1723812367772,43.7774,139.72,139.61,7.8029]
[1723812367972,3.5783,139.7,139.65,3.5794]
[1723812368174,0.05080967,139.68,139.65,0.04624067]
[1723812368376,0.05080967,139.68,139.66,6.5]
[1723812368672,43.03,139.75,139.66,6.5]
[1723812368879,0.05263749,139.68,139.66,49.58108653]
[1723812369265,10.7192,139.76,139.66,49.53]
[1723812369465,0.04609517,139.68,139.66,49.57863116]
[1723812369673,0.04609517,139.68,139.67,4.8864]
[1723812369871,46.6065,139.77,139.67,1.3074]
[1723812370073,43.03,139.79,139.68,43.03]
[1723812370273,43.03,139.79,139.68,44.3839]
[1723812370469,43.03,139.79,139.69,3.51627011]
[1723812370777,43.03,139.79,139.68,44.3839]
[1723812370974,43.03,139.81,139.7,43.03]
[1723812371223,43.03,139.81,139.71,6.5]
[1723812371475,3.576,139.79,139.73,3.5772]
[1723812371668,0.05058899,139.77,139.74,0.05485595]
[1723812373178,0.05058899,139.77,139.75,3.5767]
[1723812373376,0.05058899,139.77,139.74,0.05485595]
[1723812375679,3.62698899,139.77,139.74,0.05485595]
[1723812375875,0.05058899,139.77,139.74,0.05485595]
[1723812376667,3.5768,139.76,139.74,0.05485595]
[1723812376871,0.05058899,139.77,139.74,0.05485595]
[1723812378679,0.05058899,139.77,139.74,3.63195595]
[1723812379376,0.05058899,139.77,139.74,0.05485595]
[1723812379777,0.05058899,139.77,139.76,3.5767]
[1723812380073,0.05058899,139.77,139.74,0.05485595]
[1723812380279,3.5769,139.76,139.74,0.05485595]
[1723812380581,0.05058899,139.77,139.74,0.05485595]
[1723812381170,0.05058899,139.77,139.74,3.63185595]
[1723812381376,0.05058899,139.77,139.74,0.05485595]
[1723812381869,0.05058899,139.77,139.74,1.30985595]
[1723812382068,0.05058899,139.77,139.76,3.5767]
[1723812382269,0.05058899,139.77,139.74,2.68635595]
[1723812382475,0.05058899,139.77,139.76,3.5767]
[1723812383870,130.47559854,139.87,139.75,52.8491]
[1723812384069,51.6056,139.87,139.75,52.8491]
[1723812384272,3.5746,139.84,139.75,52.8491]
[1723812384472,51.53,139.84,139.72,51.53]
[1723812384785,3.577,139.75,139.68,2.6434]
[1723812385080,0.7949,139.83,139.68,2.6434]
[1723812385081,51.53,139.76,139.68,2.6434]
[1723812385277,0.0400782,139.73,139.7,0.05104243]
[1723812385473,0.0400782,139.73,139.7,3.62914243]
[1723812385680,0.0400782,139.73,139.7,0.05104243]
[1723812387774,0.0400782,139.73,139.7,3.62904243]
[1723812387978,0.0400782,139.73,139.7,0.05104243]
[1723812388375,0.0400782,139.73,139.72,3.5777]
[1723812388680,0.0400782,139.73,139.7,0.05104243]
[1723812389883,0.0400782,139.73,139.72,3.5777]
[1723812390483,0.0400782,139.73,139.7,0.05104243]
[1723812391783,51.5700782,139.73,139.7,0.05104243]
[1723812391975,3.5777,139.72,139.7,0.05104243]
[1723812392170,51.5700782,139.73,139.7,0.05104243]
[1723812392575,3.5779,139.71,139.7,0.05104243]
[1723812392982,51.5700782,139.73,139.7,0.05104243]
[1723812393180,3.5778,139.72,139.7,0.05104243]
[1723812393575,58.3700782,139.73,139.7,0.05104243]
[1723812393576,0.0400782,139.73,139.7,0.05104243]
[1723812394178,3.5777,139.72,139.7,0.05104243]
[1723812394480,0.0400782,139.73,139.7,0.05104243]
[1723812394684,3.5779,139.71,139.7,0.05104243]
[1723812394979,0.0400782,139.73,139.61,2.6146]
[1723812394980,51.5700782,139.73,139.61,2.6146]
[1723812395179,51.53,139.71,139.62,3.5801]
[1723812395381,6.8,139.7,139.61,2.6146]
[1723812395575,6.8,139.7,139.57,58.33]
[1723812395882,51.53,139.68,139.6,3.5807]
[1723812396072,51.53,139.68,139.55,51.53]
[1723812396273,3.58,139.63,139.56,1.3154554]
[1723812396475,51.58073038,139.66,139.56,1.3154554]
[1723812396686,51.58073038,139.66,139.55,55.18352065]
[1723812396981,51.53,139.68,139.58,0.04771454]
[1723812397278,3.5791,139.67,139.62,3.58]
[1723812397474,0.7993,139.69,139.58,0.04771454]
[1723812397674,0.05480105,139.62,139.57,51.53]
[1723812397879,71.52,139.73,139.61,42.92]
[1723812398071,6.8,139.71,139.62,2.65459568]
[1723812398283,3.5784,139.7,139.64,46.4995]
[1723812398585,0.05397065,139.68,139.65,0.05151269]
[1723812398986,0.05397065,139.68,139.65,3.63081269]
[1723812399173,0.05397065,139.68,139.65,0.05151269]
[1723812399379,0.05397065,139.68,139.66,42.92]
[1723812399581,0.05397065,139.68,139.67,3.579]
[1723812399774,42.92,139.79,139.66,42.92]
[1723812399976,3.5771,139.75,139.69,3.5783]
[1723812400175,51.53,139.78,139.66,51.53]
[1723812400684,51.53,139.78,139.68,3.5786]
[1723812400879,51.53,139.78,139.66,51.53]
[1723812401088,0.03714998,139.73,139.71,0.05507357]
[1723812401587,51.53,139.78,139.71,0.05507357]
[1723812401888,0.03714998,139.73,139.71,0.05507357]
[1723812402286,51.53,139.78,139.66,51.53]
[1723812402482,51.53,139.78,139.7,3.578]
[1723812402681,0.03714998,139.73,139.66,51.53]
[1723812402882,0.03714998,139.73,139.71,0.04670074]
[1723812403692,0.03714998,139.73,139.72,3.5777]
[1723812403876,0.03714998,139.73,139.69,1.3773]
[1723812404080,0.03714998,139.73,139.7,3.578]
[1723812404384,0.03714998,139.73,139.71,0.05190606]
[1723812404779,0.03714998,139.73,139.71,3.62970606]
[1723812404981,0.03714998,139.73,139.71,0.05190606]
[1723812405180,0.03714998,139.73,139.72,3.5777]
[1723812405688,0.03714998,139.73,139.71,0.05190606]
[1723812405877,0.03714998,139.73,139.72,3.5777]
[1723812406588,3.5759,139.79,139.74,3.5771]
[1723812406890,51.53,139.83,139.71,51.53]
[1723812407187,3.5757,139.8,139.71,51.53]
[1723812407382,3.5757,139.8,139.72,6.84]
[1723812407786,51.53,139.83,139.72,6.84]
[1723812407987,51.53,139.81,139.75,0.04989245]
[1723812408182,51.53,139.83,139.71,51.53]
[1723812408386,51.53,139.83,139.77,0.05194936]
[1723812408883,3.5753,139.82,139.77,0.05194936]
[1723812409087,51.53,139.83,139.77,0.05194936]
[1723812409286,55.105,139.83,139.77,3.62814936]
[1723812409588,51.53,139.83,139.77,0.05194936]
[1723812409777,3.5757,139.8,139.77,0.05194936]
[1723812410076,51.53,139.83,139.77,0.05194936]
[1723812410484,3.5756,139.81,139.77,0.05194936]
[1723812411285,3.5752,139.82,139.77,3.62814936]
[1723812411988,55.1049,139.83,139.77,0.05194936]
[1723812412187,51.53,139.83,139.77,0.05194936]
[1723812412588,51.53,139.83,139.78,3.576]
[1723812412788,3.5749,139.83,139.78,3.576]
[1723812413587,3.5751,139.82,139.78,3.576]
[1723812414189,3.5749,139.83,139.74,1.2733]
[1723812414495,3.5749,139.83,139.79,0.04686771]
[1723812414994,3.5747,139.84,139.79,3.62276771]
[1723812415289,51.53,139.83,139.79,0.04686771]
[1723812415489,51.53,139.8,139.71,1.3179]
[1723812415705,51.53,139.78,139.69,2.6904]
[1723812416196,3.5768,139.76,139.69,2.6904]
[1723812416593,3.5768,139.76,139.71,3.5778]
[1723812416790,0.04686771,139.74,139.71,0.04764632]
[1723812417290,3.62406771,139.74,139.71,0.04764632]
[1723812417689,0.04686771,139.74,139.71,0.04764632]
[1723812418294,51.53,139.73,139.64,1.3358]
[1723812418593,61.96534518,139.73,139.64,1.3358]
[1723812418898,58.37,139.73,139.64,1.3358]
[1723812419196,58.37,139.73,139.64,4.9154]
[1723812419696,3.62583405,139.7,139.67,0.05453687]
[1723812419894,0.04753405,139.7,139.67,0.05453687]
[1723812420400,42.97753405,139.7,139.6,1.3669]
[1723812420694,42.93,139.68,139.6,1.3669]
[1723812420892,3.59080445,139.71,139.57,1.3396]
[1723812420893,42.93,139.65,139.57,1.3396]
[1723812421696,42.93,139.61,139.6,0.04947691]
[1723812421892,49.77,139.67,139.52,1.3669]
[1723812421893,42.93,139.59,139.52,1.3669]
[1723812422201,42.93,139.59,139.48,42.93]
[1723812422417,42.93,139.59,139.47,6.84]
[1723812422418,42.93,139.57,139.47,1.3426]
[1723812422591,3.5817,139.57,139.48,42.93]
[1723812422892,42.93,139.63,139.52,42.93]
[1723812423200,0.04668189,139.54,139.52,42.93]
[1723812423395,0.04668189,139.54,139.53,3.5825]
[1723812423592,3.5805,139.62,139.52,42.93]
[1723812423902,6.84,139.63,139.52,51.57]
[1723812424103,3.5818,139.56,139.47,52.9126]
[1723812424304,51.57,139.6,139.48,1.31617483]
[1723812424798,3.5818,139.56,139.48,1.31617483]
[1723812425105,0.05498173,139.55,139.53,0.05061868]
[1723812425300,3.5823,139.54,139.53,0.05061868]
[1723812425603,0.05498173,139.55,139.53,0.05061868]
[1723812426107,58.41,139.57,139.47,1.3426]
[1723812426803,58.41,139.57,139.5,3.5833]
[1723812427195,58.7284,139.67,139.48,51.57]
[1723812427196,51.57,139.6,139.48,51.57]
[1723812427396,62.04234126,139.6,139.49,1.31613035]
[1723812427597,62.04234126,139.6,139.52,0.05345708]
[1723812427793,0.05121892,139.55,139.52,0.05345708]
[1723812430001,3.5825,139.54,139.52,0.05345708]
[1723812430410,0.05121892,139.55,139.52,0.05345708]
[1723812430698,3.63331892,139.55,139.52,0.05345708]
[1723812431101,0.05121892,139.55,139.52,0.05345708]
[1723812432200,0.05121892,139.55,139.54,3.5823]
[1723812433298,0.6493,139.66,139.54,3.5823]
[1723812433299,52.2193,139.66,139.54,51.57]
[1723812433503,52.2193,139.66,139.55,1.2977]
[1723812433706,3.5799,139.64,139.55,1.2977]
[1723812433903,6.66,139.67,139.57,51.57]
[1723812434302,6.66,139.67,139.6,3.5806]
[1723812434505,6.66,139.67,139.57,51.57]